bitfinex/quotes_SOLUSD_20251001
["timestamp","ask_amount","ask_price","bid_price","bid_amount"]
[1759308104387,16.31721064,214.5,214.43,41.52514339]
[1759308104593,15.20015504,214.5,214.43,41.52514339]
[1759308104799,11.65501165,214.5,214.43,37.98]
[1759308105017,15.20015504,214.5,214.43,37.98]
[1759308105506,11.65501165,214.5,214.44,3.54514339]
[1759308105914,11.65501165,214.5,214.42,37.0]
[1759308106123,4.66178732,214.51,214.48,3.54514339]
[1759308106291,5.37178732,214.51,214.43,0.66]
[1759308106488,8.20714805,214.5,214.44,37.88]
[1759308106689,4.66200466,214.5,214.45,3.54514339]
[1759308106928,0.71,214.66,214.49,3.54514339]
[1759308107219,17.01561378,214.65,214.53,20.8]
[1759308107521,4.25514339,214.64,214.57,3.54514339]
[1759308107720,4.65874679,214.65,214.59,3.54514339]
[1759308107928,56.4680192,214.68,214.48,3.54514339]
[1759308107929,4.65850007,214.67,214.62,3.54514339]
[1759308108113,17.01428196,214.67,214.63,74.4]
[1759308108424,17.01428196,214.67,214.64,38.04]
[1759308108715,0.71,214.71,214.65,38.02]
[1759308108910,4.65766185,214.7,214.65,38.02]
[1759308109089,8.20280524,214.7,214.65,38.02]
[1759308109290,3.54514339,214.67,214.63,36.36]
[1759308109490,4.25514339,214.67,214.64,38.0]
[1759308109689,0.71,214.67,214.63,36.36]
[1759308109912,0.71,214.67,214.64,38.0]
[1759308110213,0.71,214.7,214.64,41.54514339]
[1759308110395,4.65679426,214.74,214.67,3.54514339]
[1759308110596,8.2023714,214.72,214.65,3.54514339]
[1759308110796,3.54514339,214.71,214.65,3.54514339]
[1759308110996,4.65699871,214.74,214.64,38.66]
[1759308111200,3.54514339,214.71,214.65,41.50514339]
[1759308111404,3.54514339,214.71,214.65,37.96]
[1759308111596,3.54514339,214.72,214.65,41.50514339]
[1759308111814,0.71,214.73,214.65,41.50514339]
[1759308112114,4.25514339,214.73,214.66,3.54514339]
[1759308112316,3.54514339,214.72,214.65,41.50514339]
[1759308112814,5.36744492,214.71,214.66,37.86]
[1759308113017,3.54514339,214.69,214.66,37.86]
[1759308113216,4.25514339,214.69,214.66,37.86]
[1759308113427,0.71,214.69,214.66,37.86]
[1759308113926,3.54514339,214.7,214.66,37.86]
[1759308114118,16.30105723,214.71,214.63,39.90514339]
[1759308114119,3.54514339,214.67,214.63,36.36]
[1759308114320,4.24514339,214.67,214.64,37.8]
[1759308114495,3.54514339,214.67,214.64,37.8]
[1759308114824,4.65874679,214.65,214.64,37.8]
[1759308115193,0.7,214.7,214.64,37.8]
[1759308115394,3.54514339,214.68,214.64,37.8]
[1759308115595,0.7,214.67,214.64,37.8]
[1759308115818,0.28432314,214.71,214.64,41.34514339]
[1759308116118,3.54514339,214.67,214.64,37.8]
[1759308116304,0.7,214.66,214.64,37.8]
[1759308116701,4.65874679,214.65,214.64,37.8]
[1759308116906,4.65874679,214.65,214.64,37.72]
[1759308117108,8.90389018,214.65,214.64,37.72]
[1759308117309,8.90389018,214.65,214.59,3.54514339]
[1759308117310,43.84449115,214.65,214.5,0.68]
[1759308117510,13.42525613,214.64,214.51,3.54514339]
[1759308117706,40.29934776,214.65,214.49,36.36]
[1759308117707,3.54514339,214.62,214.55,3.54514339]
[1759308117898,0.7,214.63,214.58,3.54514339]
[1759308118118,0.7,214.63,214.52,0.68]
[1759308118119,4.24514339,214.63,214.57,3.54514339]
[1759308118492,9.98174728,214.65,214.58,41.24514339]
[1759308118806,9.98174728,214.65,214.52,20.8]
[1759308118807,14.64049407,214.65,214.6,3.54514339]
[1759308119122,14.64049407,214.65,214.61,37.7]
[1759308119502,4.24514339,214.64,214.61,37.7]
[1759308120319,11.64465156,214.7,214.61,37.7]
[1759308120625,0.7,214.75,214.68,3.54514339]
[1759308120856,0.7,214.75,214.62,0.68]
[1759308120857,3.54514339,214.69,214.62,20.8]
[1759308121125,3.54514339,214.73,214.66,3.54514339]
[1759308121333,0.7,214.75,214.68,3.54514339]
[1759308121526,0.7,214.75,214.69,36.36]
[1759308121707,4.65614378,214.77,214.7,37.72]
[1759308121897,3.54514339,214.76,214.7,37.72]
[1759308122104,3.54514339,214.75,214.7,37.72]
[1759308122330,3.54514339,214.73,214.7,37.72]
[1759308122837,8.20258831,214.71,214.69,36.36]
[1759308123034,8.20258831,214.71,214.7,37.74]
[1759308123208,3.54514339,214.74,214.7,37.74]
[1759308123622,3.54514339,214.73,214.7,37.74]
[1759308123904,3.54514339,214.74,214.7,37.74]
[1759308124106,3.54514339,214.76,214.7,37.74]
[1759308124331,4.65614378,214.77,214.7,37.74]
[1759308124600,3.54514339,214.76,214.7,37.74]
[1759308124823,8.2017208,214.75,214.7,37.74]
[1759308125000,4.65657741,214.75,214.7,37.74]
[1759308125200,8.2017208,214.75,214.7,37.74]
[1759308125405,16.99802094,214.75,214.7,37.74]
[1759308125616,16.99802094,214.75,214.71,37.72]
[1759308125905,19.22589473,214.78,214.74,24.34514339]
[1759308125906,18.54589473,214.78,214.74,24.34514339]
[1759308126107,18.54589473,214.78,214.77,24.34514339]
[1759308126409,0.1,214.82,214.79,20.8]
[1759308126609,0.1,214.82,214.81,3.54514339]
[1759308126805,0.1,214.82,214.81,4.65527675]
[1759308127031,0.1,214.82,214.81,41.48514339]
[1759308127250,0.1,214.82,214.76,3.54514339]
[1759308127451,0.1,214.82,214.81,3.54514339]
[1759308127603,0.1,214.82,214.81,41.50514339]
[1759308127807,0.1,214.82,214.81,20.8]
[1759308128008,0.1,214.82,214.81,24.34514339]
[1759308128205,0.1,214.82,214.81,76.14506054]
[1759308128414,16.27755557,215.02,214.88,0.28432314]
[1759308128605,16.27755557,215.02,214.92,20.8]
[1759308129025,16.27755557,215.02,214.93,38.06]
[1759308129408,16.27755557,215.02,214.95,3.54514339]
[1759308129725,3.54514339,215.0,214.96,38.04]
[1759308130010,39.53120639,215.02,214.97,38.06]
[1759308130212,4.64979784,215.07,214.92,20.8]
[1759308130413,0.7,215.06,214.99,3.54514339]
[1759308130637,0.7,215.06,215.0,38.12]
[1759308130812,11.62358192,215.08,214.96,20.8]
[1759308131012,3.54514339,215.03,214.89,36.34]
[1759308131219,0.7,215.02,214.89,36.34]
[1759308131417,3.54514339,214.99,214.9,41.72514339]
[1759308131640,0.7,214.98,214.9,38.18]
[1759308131820,3.54514339,214.95,214.89,36.34]
[1759308132016,0.7,214.97,214.76,3.54514339]
[1759308132017,0.7,214.94,214.84,3.54514339]
[1759308132215,3.54514339,214.9,214.82,36.32]
[1759308132420,20.8,214.96,214.82,36.32]
[1759308132421,3.54514339,214.88,214.82,36.32]
[1759308132622,0.7,214.87,214.82,36.32]
[1759308132825,16.28664494,214.9,214.82,39.86514339]
[1759308133020,3.54514339,214.85,214.76,39.86514339]
[1759308133238,0.7,214.84,214.77,38.2]
[1759308133447,0.7,214.89,214.82,3.54514339]
[1759308133738,0.7,214.89,214.83,38.2]
[1759308133921,0.7,214.88,214.84,38.22]
[1759308134119,0.7,214.87,214.85,38.22]
[1759308134323,0.7,214.92,214.85,38.22]
[1759308134545,0.7,214.95,214.88,3.54514339]
[1759308134733,0.7,214.95,214.85,38.22]
[1759308134916,4.65246115,214.94,214.85,38.22]
[1759308135241,16.28361402,214.94,214.85,38.22]
[1759308135422,16.28361402,214.94,214.89,3.54514339]
[1759308135836,16.98361402,214.94,214.9,38.18]
[1759308136043,16.28361402,214.94,214.81,20.8]
[1759308136240,0.7,214.93,214.87,3.54514339]
[1759308136442,0.7,214.93,214.88,38.16]
[1759308136677,4.65246115,214.94,214.88,41.70514339]
[1759308136836,4.65198527,214.97,214.92,3.54514339]
[1759308137166,4.65198527,214.97,214.93,38.14]
[1759308137167,0.7,214.96,214.93,38.14]
[1759308137330,3.54514339,214.93,214.79,20.8]
[1759308137530,3.54514339,214.91,214.83,3.54514339]
[1759308137737,0.7,214.91,214.84,38.16]
[1759308137955,3.54514339,214.9,214.81,3.54514339]
[1759308138153,0.7,214.89,214.82,38.16]
[1759308138364,0.7,214.89,214.83,38.14]
[1759308138863,4.24514339,214.89,214.83,38.14]
[1759308139066,16.28816082,214.88,214.83,38.14]
[1759308139262,16.28816082,214.88,214.84,38.12]
[1759308139440,16.28816082,214.88,214.85,38.08]
[1759308139635,16.28816082,214.88,214.77,13.59559401]
[1759308139835,16.28816082,214.88,214.83,3.54514339]
[1759308140263,0.68,214.87,214.84,38.1]
[1759308140434,3.54514339,214.85,214.84,38.1]
[1759308140639,0.68,214.85,214.76,36.32]
[1759308140860,3.54514339,214.84,214.76,36.32]
[1759308141054,16.29195177,214.83,214.77,3.54514339]
[1759308141367,16.29195177,214.83,214.76,36.32]
[1759308141972,3.54514339,214.8,214.76,36.32]
[1759308142134,3.54514339,214.78,214.77,38.06]
[1759308142334,0.68,214.78,214.77,38.06]
[1759308143037,8.88107038,214.78,214.76,36.32]
[1759308143261,0.68,214.77,214.76,36.32]
[1759308143559,4.65592699,214.78,214.76,36.32]
[1759308143970,4.6557276,214.79,214.76,36.32]
[1759308144157,23.26901393,214.88,214.78,3.54514339]
[1759308144158,0.68,214.88,214.78,3.54514339]
[1759308144465,0.68,214.88,214.76,36.32]
[1759308144639,0.68,214.88,214.8,3.54514339]
[1759308144834,3.54514339,214.87,214.81,38.04]
[1759308145037,3.54514339,214.84,214.76,36.32]
[1759308145248,0.68,214.84,214.77,38.06]
[1759308145664,4.22514339,214.84,214.76,39.86514339]
[1759308145835,16.29043518,214.85,214.78,3.54514339]
[1759308146542,3.54514339,214.84,214.79,38.0]
[1759308146843,0.68,214.83,214.76,36.32]
[1759308147043,16.29271017,214.82,214.76,36.32]
[1759308147361,16.29271017,214.82,214.77,3.54514339]
[1759308147542,16.29271017,214.82,214.78,3.54514339]
[1759308147739,4.65506005,214.82,214.76,36.32]
[1759308148367,4.65506005,214.82,214.79,5.47667418]
[1759308148664,4.65506005,214.82,214.8,43.39667418]
[1759308148844,4.65506005,214.82,214.81,5.47667418]
[1759308149158,27.9205821,214.9,214.81,5.47667418]
[1759308149344,16.28664494,214.9,214.83,5.47667418]
[1759308149676,16.28664494,214.9,214.85,5.47667418]
[1759308149966,4.65332712,214.9,214.86,37.9]
[1759308150265,4.65332712,214.9,214.86,43.37667418]
[1759308150469,4.65332712,214.9,214.87,37.86]
[1759308150671,4.65332712,214.9,214.88,37.86]
[1759308150878,4.15332712,214.9,214.88,37.86]
[1759308151248,21.76180353,214.92,214.88,37.86]
[1759308151447,21.76180353,214.92,214.8,20.8]
[1759308151448,16.96512935,214.92,214.89,37.82]
[1759308151673,16.96512935,214.92,214.9,37.82]
[1759308151886,16.96512935,214.92,214.83,5.47667418]
[1759308151887,0.68,214.91,214.83,5.47667418]
[1759308152049,0.68,214.9,214.76,36.32]
[1759308152250,5.47667418,214.86,214.79,5.47667418]
[1759308152467,5.47667418,214.86,214.76,36.32]
[1759308152767,0.68,214.87,214.78,5.47667418]
[1759308153071,5.47667418,214.86,214.77,37.8]
[1759308153251,16.29043518,214.85,214.77,37.8]
[1759308153458,16.29043518,214.85,214.8,5.47667418]
[1759308153653,21.76710936,214.85,214.78,5.47667418]
[1759308153853,5.47667418,214.84,214.77,5.47667418]
[1759308154071,5.47667418,214.84,214.78,37.76]
[1759308154258,6.15667418,214.84,214.78,37.76]
[1759308154455,0.68,214.84,214.78,43.23667418]
[1759308155048,4.65441005,214.85,214.8,5.47667418]
[1759308155250,0.68,214.85,214.81,37.72]
[1759308155453,0.68,214.85,214.8,5.47667418]
[1759308155648,5.47667418,214.87,214.82,37.72]
[1759308155870,0.68,214.86,214.76,36.32]
[1759308156174,5.47667418,214.83,214.76,36.32]
[1759308156553,0.68,214.84,214.77,5.47667418]
[1759308157077,5.47667418,214.87,214.79,5.47667418]
[1759308157275,0.68,214.86,214.8,37.66]
[1759308157480,5.47667418,214.84,214.8,37.66]
[1759308157678,6.15667418,214.84,214.8,37.66]
[1759308157871,0.68,214.83,214.8,37.66]
[1759308158173,0.68,214.83,214.54,29.23536029]
[1759308158174,5.47667418,214.81,214.67,36.32]
[1759308158474,5.47667418,214.78,214.71,5.47667418]
[1759308158670,5.47667418,214.78,214.67,36.32]
[1759308158875,6.15667418,214.77,214.69,5.47667418]
[1759308159175,5.47667418,214.76,214.69,5.47667418]
[1759308159360,16.29802094,214.75,214.69,5.47667418]
[1759308159562,16.29802094,214.75,214.7,37.6]
[1759308159750,13.59559401,214.86,214.7,37.6]
[1759308159751,20.8,214.84,214.7,37.6]
[1759308159950,0.68,214.92,214.74,20.8]
[1759308160149,0.68,214.92,214.73,13.59559401]
[1759308160381,0.68,214.91,214.76,0.28432314]
[1759308160568,0.68,214.91,214.82,20.8]
[1759308160767,0.68,214.9,214.82,20.8]
[1759308160964,0.68,214.9,214.83,32.14]
[1759308161476,5.33341006,214.9,214.83,32.14]
[1759308161677,10.81008424,214.9,214.83,32.14]
[1759308161879,5.33341006,214.9,214.82,26.27667418]
[1759308162053,5.33341006,214.9,214.83,39.32]
[1759308162381,5.33341006,214.9,214.82,5.47667418]
[1759308162578,4.65311594,214.91,214.86,5.47667418]
[1759308162980,5.33311594,214.91,214.85,5.47667418]
[1759308163285,0.68,214.9,214.86,39.34]
[1759308163462,0.68,214.89,214.78,20.8]
[1759308163674,5.47667418,214.84,214.76,5.47667418]
[1759308163867,0.28432314,214.89,214.67,40.97818827]
[1759308163868,5.47667418,214.81,214.67,36.32]
[1759308164058,0.68,214.83,214.67,40.97828945]
[1759308164493,0.68,214.83,214.76,5.47667418]
[1759308164701,5.47667418,214.8,214.72,5.47667418]
[1759308164859,0.68,214.8,214.73,39.28]
[1759308165064,6.15667418,214.8,214.72,5.47667418]
[1759308165286,16.29498579,214.79,214.73,39.38]
[1759308165662,6.15667418,214.78,214.73,39.38]
[1759308165983,6.15667418,214.78,214.7,26.27667418]
[1759308165984,0.68,214.78,214.7,26.27667418]
[1759308166291,0.68,214.78,214.71,44.83667418]
[1759308166475,4.6554546,214.81,214.76,5.47667418]
[1759308166797,4.6554546,214.81,214.77,39.34]
[1759308167168,5.3354546,214.81,214.77,39.34]
[1759308167502,0.68,214.8,214.77,39.34]
[1759308167664,0.68,214.8,214.78,39.34]
[1759308167864,4.6554546,214.81,214.76,5.47667418]
[1759308168067,5.3354546,214.81,214.77,39.34]
[1759308168259,5.3354546,214.81,214.78,39.32]
[1759308168696,41.51165969,214.93,214.78,39.32]
[1759308168879,0.68,214.85,214.78,44.79667418]
[1759308169082,0.68,214.84,214.7,20.8]
[1759308169405,4.65506005,214.82,214.74,20.8]
[1759308169680,4.65506005,214.82,214.75,44.79667418]
[1759308169681,16.97271017,214.82,214.75,44.79667418]
[1759308170176,0.68,214.81,214.76,39.32]
[1759308170381,16.29271017,214.82,214.76,39.32]
[1759308170382,5.47667418,214.78,214.76,39.32]
[1759308170588,0.68,214.77,214.67,36.32]
[1759308170756,0.68,214.77,214.68,39.34]
[1759308170957,0.68,214.77,214.69,5.47667418]
[1759308171163,5.47667418,214.76,214.67,36.32]
[1759308171367,16.29877991,214.74,214.68,39.32]
[1759308172379,16.29877991,214.74,214.67,36.32]
[1759308172380,5.47667418,214.72,214.67,36.32]
[1759308172682,16.29877991,214.74,214.69,39.3]
[1759308172984,0.68,214.73,214.7,39.26]
[1759308173189,0.68,214.73,214.67,36.32]
[1759308173390,16.30029805,214.72,214.68,39.28]
[1759308173781,0.66,214.71,214.68,39.28]
[1759308173969,0.66,214.71,214.69,39.3]
[1759308174166,0.66,214.71,214.56,3.73227309]
[1759308174167,0.66,214.7,214.57,36.32]
[1759308174368,0.66,214.69,214.57,36.32]
[1759308174569,5.47667418,214.61,214.57,36.32]
[1759308174796,19.07226819,214.71,214.57,36.32]
[1759308174797,0.66,214.6,214.57,36.32]
[1759308174996,6.13667418,214.6,214.57,36.32]
[1759308175169,0.66,214.6,214.57,36.32]
[1759308175368,4.66026656,214.58,214.54,0.2]
[1759308175567,0.66,214.57,214.54,0.2]
[1759308175795,0.66,214.56,214.54,0.2]
[1759308175989,0.66,214.55,214.54,0.2]
[1759308176193,0.66,214.55,214.54,1e-08]
[1759308176406,0.66,214.6,214.54,1e-08]
[1759308176806,6.13667418,214.6,214.55,39.2]
[1759308177146,0.66,214.59,214.55,39.2]
[1759308177270,16.31093297,214.58,214.55,39.2]
[1759308177473,0.66,214.57,214.54,1e-08]
[1759308177673,0.66,214.57,214.55,39.22]
[1759308177902,0.66,214.56,214.55,39.22]
[1759308178284,6.13667418,214.56,214.54,1e-08]
[1759308178486,6.13667418,214.55,214.54,1e-08]
[1759308178714,6.42099732,214.55,214.54,1e-08]
[1759308178878,0.94432314,214.55,214.54,1e-08]
[1759308179411,4.6609182,214.55,214.54,1e-08]
[1759308179705,10.79759238,214.55,214.54,1e-08]
[1759308179905,10.79759238,214.55,214.54,39.22000001]
[1759308180205,22.44988788,214.55,214.54,39.2]
[1759308180389,16.3132137,214.55,214.54,39.2]
[1759308180583,0.28432314,214.54,214.48,0.2]
[1759308180810,5.47667418,214.49,214.41,36.34]
[1759308181008,5.47667418,214.49,214.23,28.54244387]
[1759308181009,5.47667418,214.42,214.26,3.73227309]
[1759308181215,0.66,214.41,214.23,0.2]
[1759308181533,0.66,214.46,214.23,4.86785759]
[1759308181830,0.28432314,214.44,214.23,0.2]
[1759308182122,14.2964029,214.46,214.23,0.2]
[1759308182123,5.47667418,214.42,214.24,42.55662468]
[1759308182298,5.47667418,214.37,214.3,5.47667418]
[1759308182484,0.28432314,214.4,214.31,39.36]
[1759308182682,0.66,214.44,214.36,5.47667418]
[1759308182884,0.94432314,214.5,214.34,20.8]
[1759308183086,0.66,214.5,214.45,5.47667418]
[1759308183286,0.66,214.49,214.46,40.02]
[1759308183584,5.47667418,214.47,214.24,36.34]
[1759308183788,5.47667418,214.44,214.37,5.47667418]
[1759308184013,5.47667418,214.45,214.38,32.66]
[1759308184189,5.47667418,214.39,214.25,4.66744457]
[1759308184385,5.47667418,214.37,214.24,36.34]
[1759308184585,0.66,214.41,214.31,5.47667418]
[1759308184787,5.47667418,214.41,214.33,5.47667418]
[1759308184982,0.66,214.4,214.24,36.34]
[1759308185182,0.66,214.4,214.25,40.0]
[1759308185405,20.8,214.46,214.25,40.0]
[1759308185406,16.32310418,214.42,214.3,5.47667418]
[1759308185596,5.47667418,214.39,214.3,10.14296927]
[1759308185907,5.47667418,214.39,214.3,5.47667418]
[1759308186106,4.66374405,214.42,214.3,4.66627951]
[1759308186281,4.66374405,214.42,214.34,5.47667418]
[1759308186485,4.66374405,214.42,214.35,39.94]
[1759308187209,4.66374405,214.42,214.34,5.47667418]
[1759308187210,10.14041823,214.42,214.34,5.47667418]
[1759308187512,5.47667418,214.38,214.35,39.9]
[1759308187697,16.98310418,214.42,214.33,20.8]
[1759308187900,16.98310418,214.42,214.28,5.47667418]
[1759308187901,5.47667418,214.37,214.28,20.8]
[1759308188218,5.47667418,214.39,214.32,20.8]
[1759308188420,16.98310418,214.42,214.33,39.86]
[1759308188614,21.79977836,214.42,214.33,39.86]
[1759308188811,21.79977836,214.42,214.33,20.8]
[1759308189324,5.47667418,214.4,214.34,39.8]
[1759308189620,4.66439666,214.39,214.34,39.8]
[1759308189822,5.47667418,214.38,214.35,39.76]
[1759308190021,5.47667418,214.36,214.3,20.8]
[1759308190231,0.28432314,214.46,214.3,20.8]
[1759308190232,13.59559401,214.5,214.35,5.47667418]
[1759308190535,0.66,214.56,214.5,20.8]
[1759308190823,0.66,214.56,214.51,76.86]
[1759308190995,5.47667418,214.55,214.51,36.38]
[1759308191192,4.65927012,214.63,214.51,36.38]
[1759308191405,0.66,214.62,214.52,40.48]
[1759308191612,0.66,214.62,214.51,36.38]
[1759308191613,16.3132137,214.55,214.51,36.38]
[1759308191819,16.3132137,214.55,214.52,40.46]
[1759308192008,4.6609182,214.55,214.52,40.46]
[1759308192525,0.66,214.65,214.52,66.73667418]
[1759308192699,0.66,214.65,214.55,20.8]
[1759308192903,5.47667418,214.63,214.55,20.8]
[1759308193109,5.47667418,214.63,214.56,40.4]
[1759308193404,0.66,214.62,214.57,40.4]
[1759308193604,5.47667418,214.58,214.51,57.18]
[1759308193808,40.26672846,214.61,214.52,40.36]
[1759308193809,5.47667418,214.55,214.52,40.36]
[1759308193997,0.66,214.59,214.51,57.18]
[1759308194192,5.47667418,214.55,214.53,40.36]
[1759308194898,0.66,214.59,214.54,40.34]
[1759308195098,5.47667418,214.57,214.54,40.34]
[1759308195299,5.47667418,214.57,214.51,20.8]
[1759308195508,0.14216157,214.65,214.51,20.8]
[1759308195509,4.65938955,214.63,214.55,40.32]
[1759308195717,5.47667418,214.68,214.59,5.47667418]
[1759308196120,5.47667418,214.68,214.58,20.8]
[1759308196297,21.7800264,214.68,214.58,5.47667418]
[1759308196496,21.7800264,214.68,214.59,40.38]
[1759308196497,5.47667418,214.66,214.59,40.38]
[1759308196921,22.4400264,214.68,214.59,40.38]
[1759308197531,16.30335222,214.68,214.59,45.85667418]
[1759308197707,16.30335222,214.68,214.59,5.47667418]
[1759308197906,16.30335222,214.68,214.6,40.32]
[1759308198121,16.30335222,214.68,214.61,40.3]
[1759308198432,10.13429295,214.71,214.62,5.47667418]
[1759308198738,5.47667418,214.69,214.56,20.8]
[1759308198899,5.47667418,214.69,214.59,20.8]
[1759308199105,5.47667418,214.67,214.6,40.24]
[1759308199420,6.12667418,214.69,214.61,40.24]
[1759308199614,4.65809577,214.68,214.61,40.24]
[1759308200008,16.30333519,214.68,214.6,5.47667418]
[1759308200207,16.30333519,214.68,214.56,20.8]
[1759308200208,5.47667418,214.65,214.56,20.8]
[1759308200617,5.47667418,214.64,214.57,40.26]
[1759308200810,5.47667418,214.64,214.58,40.26]
[1759308201427,5.47667418,214.65,214.58,40.26]
[1759308201727,16.30637345,214.64,214.56,26.27667418]
[1759308201927,16.30637345,214.64,214.59,40.26]
[1759308202430,4.65896384,214.64,214.6,40.16]
[1759308202626,4.65896384,214.64,214.61,40.14]
[1759308203417,16.30637345,214.64,214.61,40.14]
[1759308203641,11.64740961,214.64,214.62,40.08]
[1759308204526,4.65874679,214.65,214.55,4.66090068]
[1759308204827,4.65874679,214.65,214.57,5.47667418]
[1759308205025,4.65874679,214.65,214.58,5.47667418]
[1759308205933,16.30409464,214.67,214.58,5.47667418]
[1759308206442,16.30409464,214.67,214.59,39.98]
[1759308206643,16.30409464,214.67,214.59,45.45667418]
[1759308206828,16.30409464,214.67,214.59,39.98]
[1759308207034,16.30409464,214.67,214.6,39.9]
[1759308207216,21.78076882,214.67,214.6,39.9]
[1759308207830,21.78076882,214.67,214.61,39.9]
[1759308208032,0.66,214.66,214.61,39.9]
[1759308208216,0.66,214.65,214.61,39.9]
[1759308208416,0.66,214.65,214.57,3.53814834]
[1759308208627,4.19814834,214.65,214.58,39.82]
[1759308208924,16.30409464,214.67,214.56,20.8]
[1759308208925,3.53814834,214.63,214.56,20.8]
[1759308209131,3.53814834,214.63,214.59,39.78]
[1759308209454,0.66,214.62,214.59,39.78]
[1759308209621,0.66,214.61,214.56,20.8]
[1759308209944,4.65983224,214.6,214.55,20.8]
[1759308210111,4.65983224,214.6,214.56,76.1]
[1759308211247,4.65983224,214.6,214.57,39.7]
[1759308211635,4.65983224,214.6,214.56,36.36]
[1759308211839,4.19814834,214.6,214.56,36.36]
[1759308212022,4.65809577,214.68,214.57,39.62]
[1759308212023,4.19814834,214.59,214.57,39.62]
[1759308212228,0.66,214.58,214.57,39.62]
[1759308212428,13.87991715,214.66,214.57,39.62]
[1759308212429,0.66,214.61,214.57,39.62]
[1759308212628,4.19814834,214.6,214.57,39.62]
[1759308212837,0.66,214.63,214.57,39.62]
[1759308213450,0.66,214.67,214.6,3.53814834]
[1759308213948,4.65852976,214.66,214.6,3.53814834]
[1759308214352,4.65852976,214.66,214.61,3.53814834]
[1759308214552,4.65852976,214.66,214.62,39.52]
[1759308214759,0.66,214.67,214.62,39.52]
[1759308214943,4.65838685,214.67,214.64,3.53814834]
[1759308215460,16.30200542,214.7,214.64,3.53814834]
[1759308216023,3.53814834,214.74,214.66,3.53814834]
[1759308216227,16.29973559,214.73,214.67,39.42]
[1759308217937,16.95973559,214.73,214.67,39.42]
[1759308218130,16.95973559,214.73,214.68,39.34]
[1759308218131,0.66,214.72,214.68,39.34]
[1759308218470,3.53814834,214.7,214.61,20.8]
[1759308218668,0.66,214.69,214.62,42.81814834]
[1759308218839,16.29973559,214.73,214.62,42.81814834]
[1759308218840,3.53814834,214.71,214.62,42.81814834]
[1759308219168,3.53814834,214.71,214.64,3.53814834]
[1759308219371,3.53814834,214.71,214.65,39.26]
[1759308219570,16.30181648,214.7,214.65,39.26]
[1759308219864,0.66,214.69,214.66,39.24]
[1759308220031,0.66,214.69,214.67,39.22]
[1759308220232,0.66,214.69,214.68,39.2]
[1759308220445,4.65739683,214.72,214.68,39.2]
[1759308220942,0.66,214.71,214.68,39.2]
[1759308221137,16.30046687,214.72,214.68,39.2]
[1759308221536,16.96046687,214.72,214.63,20.8]
[1759308221841,16.96046687,214.72,214.65,3.53814834]
[1759308222445,4.65739683,214.72,214.65,3.53814834]
[1759308222660,4.65739683,214.72,214.67,20.8]
[1759308222846,0.66,214.71,214.65,3.53814834]
[1759308223038,0.66,214.71,214.66,39.12]
[1759308223766,4.65766185,214.7,214.66,39.12]
[1759308223972,4.65766185,214.7,214.67,39.06]
[1759308225065,4.65766185,214.7,214.68,39.02]
[1759308225452,0.66,214.71,214.68,39.02]
[1759308225453,4.65745999,214.71,214.68,39.02]
[1759308225761,3.53814834,214.73,214.68,39.02]
[1759308225762,4.65722801,214.72,214.68,39.02]
[1759308225934,5.31722801,214.72,214.66,3.53814834]
[1759308226136,16.96029805,214.72,214.62,20.8]
[1759308226341,4.19814834,214.71,214.63,38.94]
[1759308227052,0.66,214.71,214.63,42.47814834]
[1759308227360,4.19814834,214.71,214.63,38.94]
[1759308227575,4.19814834,214.71,214.62,25.45939071]
[1759308227781,12.30188313,214.75,214.67,3.53814834]